fUST/lending_fUST_20251207
["ID","MTS","AMOUNT","RATE_DAILY","PERIOD"]
[396656181,1765089010023,-230.90000003,5.619e-05,2]
[396656182,1765089011433,-475.2633549,5.619e-05,2]
[396656183,1765089015678,-178.16307264,5.619e-05,2]
[396656184,1765089018677,-202.67194739,5.619e-05,2]
[396656192,1765089032499,-15309.59553563,5.619e-05,2]
[396656193,1765089032510,-604.67209973,5.619e-05,2]
[396656194,1765089032532,-4624.983028,5.619e-05,2]
[396656195,1765089032542,-42952.34623189,5.619e-05,2]
[396656196,1765089032576,-610.94909855,5.619e-05,2]
[396656213,1765089033682,500.0,5.618e-05,2]
[396656224,1765089034031,500.0,5.618e-05,2]
[396656225,1765089034553,500.0,5.618e-05,2]
[396656226,1765089034831,500.0,5.618e-05,2]
[396656227,1765089034938,500.0,5.618e-05,2]
[396656228,1765089035029,500.0,5.618e-05,2]
[396656229,1765089035131,500.0,5.618e-05,2]
[396656230,1765089035204,500.0,5.618e-05,2]
[396656231,1765089035329,500.0,5.618e-05,2]
[396656232,1765089035505,500.0,5.618e-05,2]
[396656233,1765089035612,500.0,5.618e-05,2]
[396656266,1765089038601,-673.35,5.619e-05,2]
[396656268,1765089038611,-4412.03878659,5.619e-05,2]
[396656277,1765089038683,-4670.6585885,5.619e-05,2]
[396656279,1765089038695,-863.94,5.619e-05,2]
[396656286,1765089038751,-4148.09067191,5.619e-05,2]
[396656371,1765089039537,500.0,5.618e-05,2]
[396656379,1765089039606,500.0,5.618e-05,2]
[396656387,1765089039668,500.0,5.618e-05,2]
[396656391,1765089039723,500.0,5.618e-05,2]
[396656392,1765089039766,500.0,5.618e-05,2]
[396656393,1765089039833,500.0,5.618e-05,2]
[396656394,1765089039894,346.90780916,5.618e-05,2]
[396656397,1765089039945,500.0,5.618e-05,2]
[396656405,1765089040016,53.10219084,5.618e-05,2]
[396656411,1765089040060,446.89780916,5.618e-05,2]
[396656418,1765089040117,500.0,5.618e-05,2]
[396656426,1765089040183,500.0,5.618e-05,2]
[396656435,1765089040257,500.0,5.618e-05,2]
[396656441,1765089040307,500.0,5.618e-05,2]
[396656453,1765089040408,500.0,5.618e-05,2]
[396656484,1765089040694,417.46489761,5.618e-05,2]
[396656491,1765089040753,500.0,5.618e-05,2]
[396656666,1765089042377,-3e-08,5.619e-05,2]
[396656670,1765089042406,-3580.0,5.619e-05,2]
[396656672,1765089042417,-3999.998655,5.619e-05,2]
[396656851,1765089044234,1141.56573346,5.618e-05,2]
[396656859,1765089044309,1141.56573346,5.618e-05,2]
[396656867,1765089044377,1141.56573346,5.618e-05,2]
[396656900,1765089044696,1141.56573346,5.618e-05,2]
[396656905,1765089044735,-183.04650385,5.619e-05,2]
[396656915,1765089044829,1141.56573346,5.618e-05,2]
[396656923,1765089044905,427.81862593,5.618e-05,2]
[396656929,1765089044949,713.74710753,5.618e-05,2]
[396656937,1765089045021,1141.56573346,5.618e-05,2]
[396656955,1765089045189,1141.56573346,5.618e-05,2]
[396656969,1765089045313,1141.56573346,5.618e-05,2]
[396657067,1765089046258,1141.56573346,5.618e-05,2]
[396657644,1765089052211,500.0,5.618e-05,2]
[396657651,1765089052275,500.0,5.618e-05,2]
[396658723,1765089062880,300.0,5.618e-05,2]
[396658787,1765089063518,-219.16497994,5.619e-05,2]
[396659074,1765089066680,-217.65729368,5.619e-05,2]
[396659297,1765089069071,-170.90701744,5.619e-05,2]
[396659507,1765089071073,-233.71350141,5.619e-05,2]
[396659705,1765089073354,-158.65517584,5.619e-05,2]
[396660071,1765089077492,-280.90558486,5.619e-05,2]
[396662512,1765089104984,-186.78206719,5.619e-05,2]
[396662528,1765089105135,500.0,5.618e-05,2]
[396662536,1765089105206,500.0,5.618e-05,2]
[396662574,1765089105570,181.01679913,5.618e-05,2]
[396662597,1765089105968,500.0,5.618e-05,2]
[396662637,1765089106344,274.08836382,5.618e-05,2]
[396662647,1765089106430,-299.34064064,5.619e-05,2]
[396662855,1765089108432,-275.76003424,5.619e-05,2]
[396663151,1765089111463,-157.90039857,5.619e-05,2]
[396663336,1765089113464,-158.91,5.619e-05,2]
[396663502,1765089115068,1464.89479568,5.618e-05,2]
[396663508,1765089115116,22.82928458,5.618e-05,2]
[396663514,1765089115167,1487.72408026,5.618e-05,2]
[396663521,1765089115220,500.0,5.618e-05,2]
[396663527,1765089115277,1487.72408026,5.618e-05,2]
[396663533,1765089115324,217.5244171,5.618e-05,2]
[396663549,1765089115478,1487.72408026,5.618e-05,2]
[396663558,1765089115550,-152.1958078,5.619e-05,2]
[396663598,1765089115920,1487.72408026,5.618e-05,2]
[396663610,1765089116026,1487.72408026,5.618e-05,2]
[396663628,1765089116196,1487.72408026,5.618e-05,2]
[396663634,1765089116253,333.31181676,5.618e-05,2]
[396663640,1765089116296,1154.4122635,5.618e-05,2]
[396663766,1765089117625,-207.22561882,5.619e-05,2]
[396663991,1765089120035,-328.66932264,5.619e-05,2]
[396664234,1765089122410,300.0,5.618e-05,2]
[396664315,1765089123184,-244.75953969,5.619e-05,2]
[396664457,1765089125909,-173.64931978,5.619e-05,2]
[396664510,1765089128634,-210.19076145,5.619e-05,2]
[396664512,1765089131309,-232.35330873,5.619e-05,2]
[396664513,1765089133530,-395.60480096,5.619e-05,2]
[396664514,1765089136026,500.0,5.618e-05,2]
[396664515,1765089136101,877.24419905,5.618e-05,2]
[396664516,1765089136147,176.23182519,5.618e-05,2]
[396664517,1765089136294,877.24419905,5.618e-05,2]
[396664518,1765089136353,877.24419905,5.618e-05,2]
[396664519,1765089136563,877.24419905,5.618e-05,2]
[396664520,1765089137223,-326.64030813,5.619e-05,2]
[396664521,1765089138767,-242.3284504,5.619e-05,2]
[396664522,1765089140250,-195.52,5.619e-05,2]
[396664523,1765089142946,-229.34694315,5.619e-05,2]
[396664524,1765089145522,-189.66796824,5.619e-05,2]
[396664525,1765089146295,208.95318357,0.00015,30]
[396664526,1765089148937,-236.70043206,5.619e-05,2]
[396664527,1765089151758,328.66932264,5.618e-05,2]
[396664528,1765089151910,500.0,5.618e-05,2]
[396664529,1765089151972,304.83144611,5.618e-05,2]
[396664530,1765089152041,500.0,5.618e-05,2]
[396664531,1765089152181,-173.44542261,5.619e-05,2]
[396664532,1765089154270,-185.97267426,5.619e-05,2]
[396664533,1765089157461,-229.14080701,5.619e-05,2]
[396664534,1765089159167,-342.09960143,5.619e-05,2]
[396664535,1765089162114,-273.96310253,5.619e-05,2]
[396664536,1765089165260,-184.26,5.619e-05,2]
[396664537,1765089167640,-184.05824193,5.619e-05,2]
[396664538,1765089168183,500.0,5.618e-05,2]
[396664539,1765089168507,500.0,5.618e-05,2]
[396664540,1765089168848,642.97384023,5.618e-05,2]
[396664541,1765089171625,-160.33203176,5.619e-05,2]
[396664542,1765089174495,-393.80848457,5.619e-05,2]
[396664543,1765089176058,-272.56739429,5.619e-05,2]
[396664544,1765089179326,1083.91450613,5.618e-05,2]
[396664545,1765089179361,116.08549387,5.618e-05,2]
[396664546,1765089179904,-282.3966438,5.619e-05,2]
[396664547,1765089183049,300.0,5.618e-05,2]
[396664548,1765089183097,300.0,5.618e-05,2]
[396664549,1765089183200,-152.85,5.619e-05,2]
[396664550,1765089185858,-266.49820147,5.619e-05,2]
[396664551,1765089187394,-151.08,5.619e-05,2]
[396664552,1765089190179,-238.41349668,5.619e-05,2]
[396664553,1765089193379,-167.09106483,5.619e-05,2]
[396664554,1765089196104,-500.0,5.619e-05,2]
[396664555,1765089199381,-351.47784065,5.619e-05,2]
[396664556,1765089201997,-157.80546858,5.619e-05,2]
[396664557,1765089204260,-166.21,5.619e-05,2]
[396664558,1765089206378,-261.13173414,5.619e-05,2]
[396664559,1765089209389,-162.20338691,5.619e-05,2]
[396664560,1765089211293,-214.25074878,5.619e-05,2]
[396664561,1765089213521,-220.93230947,5.619e-05,2]
[396664562,1765089218030,-177.3911276,5.619e-05,2]
[396664563,1765089220923,-206.07956658,5.619e-05,2]
[396664564,1765089222508,-174.46935936,5.619e-05,2]
[396664565,1765089224702,211.25694489,5.618e-05,2]
[396664566,1765089225301,-373.65647307,5.619e-05,2]
[396664567,1765089227286,-275.1898445,5.619e-05,2]
[396664568,1765089230537,-300.0,5.619e-05,2]
[396664569,1765089232754,-267.29514942,5.619e-05,2]
[396664571,1765089238502,-388.1672447,5.619e-05,2]
[396664572,1765089245553,-299.93263803,5.619e-05,2]
[396664573,1765089248326,-175.6907337,5.619e-05,2]
[396664574,1765089249943,-432.49917161,5.619e-05,2]
[396664575,1765089251725,-196.62439236,5.619e-05,2]
[396664576,1765089255790,-228.47536908,5.619e-05,2]
[396664577,1765089257859,-383.40567253,5.619e-05,2]
[396664578,1765089261156,-234.38064113,5.619e-05,2]
[396664579,1765089262822,-382.04868251,5.619e-05,2]
[396664580,1765089309826,325.0,5.618e-05,2]
[396664581,1765089311147,2312.83697232,5.619e-05,2]
[396664583,1765089343482,-5367.36950709,5.619e-05,2]
[396664584,1765089343537,-10000.01,5.619e-05,2]
[396664585,1765089343592,-10000.01,5.619e-05,2]
[396664586,1765089343633,-10000.01,5.619e-05,2]
[396664587,1765089343667,-10000.01,5.619e-05,2]
[396664588,1765089344054,-10000.01,5.619e-05,2]
[396664589,1765089344146,-10000.01,5.619e-05,2]
[396664590,1765089344241,-10000.01,5.619e-05,2]
[396664591,1765089352947,-10000.01,5.619e-05,2]
[396664592,1765089362094,650.52074265,5.618e-05,2]
[396664593,1765089362447,300.0,5.618e-05,2]
[396664594,1765089362675,300.0,5.618e-05,2]
[396664595,1765089380129,500.0,5.618e-05,2]
[396664596,1765089380185,500.0,5.618e-05,2]
[396664597,1765089380248,500.0,5.618e-05,2]
[396664598,1765089380296,500.0,5.618e-05,2]
[396664599,1765089380345,500.0,5.618e-05,2]
[396664600,1765089380399,500.0,5.618e-05,2]
[396664601,1765089380447,500.0,5.618e-05,2]
[396664602,1765089380490,633.64365315,5.619e-05,2]
[396664603,1765089380632,395.09003111,5.618e-05,2]
[396664604,1765089381307,500.0,5.618e-05,2]
[396664605,1765089381364,500.0,5.618e-05,2]
[396664606,1765089381434,500.0,5.618e-05,2]
[396664608,1765089404482,647.22286855,5.618e-05,2]
[396664609,1765089414024,500.0,5.618e-05,2]
[396664610,1765089414078,500.0,5.618e-05,2]
[396664611,1765089414126,590.99594238,5.618e-05,2]
[396664612,1765089424884,482.53676216,5.618e-05,2]
[396664613,1765089424923,17.46323784,5.618e-05,2]
[396664614,1765089425031,500.0,5.618e-05,2]
[396664615,1765089425131,413.08570494,5.618e-05,2]
[396664616,1765089426318,500.0,5.618e-05,2]
[396664617,1765089426386,500.0,5.618e-05,2]
[396664618,1765089426434,500.0,5.618e-05,2]
[396664619,1765089426486,500.0,5.618e-05,2]
[396664620,1765089426535,500.0,5.618e-05,2]
[396664621,1765089426598,500.0,5.618e-05,2]
[396664622,1765089426665,312.66016066,5.618e-05,2]
[396664623,1765089426712,500.0,5.618e-05,2]
[396664624,1765089426786,500.0,5.618e-05,2]
[396664625,1765089479243,483.0,5.618e-05,2]
[396664626,1765089735829,212.2296424,5.598e-05,2]
[396664632,1765089962829,9787.7803576,5.519e-05,2]
[396664633,1765089962873,10000.01,5.519e-05,2]
[396664634,1765089962917,10000.01,5.519e-05,2]
[396664635,1765089962961,10000.01,5.519e-05,2]
[396664636,1765089963002,10000.01,5.519e-05,2]
[396664637,1765089963047,10000.01,5.519e-05,2]
[396664638,1765089963092,10000.01,5.519e-05,2]
[396664639,1765089963137,10000.01,5.519e-05,2]
[396664640,1765089963181,10000.01,5.519e-05,2]
[396664641,1765089963225,10000.01,5.519e-05,2]
[396664642,1765089991832,500.0,5.518e-05,2]
[396664643,1765089992032,500.0,5.518e-05,2]
[396664644,1765089992289,500.0,5.518e-05,2]
[396664645,1765089993019,189.28788565,5.518e-05,2]
[396664646,1765089993146,500.0,5.518e-05,2]
[396664647,1765089993248,500.0,5.518e-05,2]
[396664648,1765089993335,500.0,5.518e-05,2]
[396664649,1765089993432,500.0,5.518e-05,2]
[396664650,1765089993597,500.0,5.518e-05,2]
[396664651,1765089993970,157.00952277,5.518e-05,2]
[396664652,1765089994029,176.77732693,5.518e-05,2]
[396664653,1765089994104,500.0,5.518e-05,2]
[396664654,1765089994192,161.73711121,5.518e-05,2]
[396664656,1765090001002,599.4544479,5.518e-05,2]
[396664657,1765090008718,944.64645215,5.518e-05,2]
[396664658,1765090008793,944.64645215,5.518e-05,2]
[396664659,1765090008848,944.64645215,5.518e-05,2]
[396664660,1765090009127,944.64645215,5.518e-05,2]
[396664661,1765090009194,437.15789694,5.518e-05,2]
[396664662,1765090009233,507.48855521,5.518e-05,2]
[396664663,1765090009458,944.64645215,5.518e-05,2]
[396664664,1765090009740,944.64645215,5.518e-05,2]
[396664665,1765090019558,-151.06190433,5.519e-05,2]
[396664666,1765090021581,-296.72483493,5.519e-05,2]
[396664667,1765090023278,-151.34294033,5.519e-05,2]
[396664668,1765090024771,-176.24101114,5.519e-05,2]
[396664669,1765090026515,845.00903626,5.518e-05,2]
[396664670,1765090026578,845.00903626,5.518e-05,2]
[396664671,1765090026850,845.00903626,5.518e-05,2]
[396664672,1765090026940,845.00903626,5.518e-05,2]
[396664673,1765090027064,-191.77186993,5.519e-05,2]
[396664674,1765090027208,845.00903626,5.518e-05,2]
[396664675,1765090027537,845.00903626,5.518e-05,2]
[396664676,1765090027615,845.00903626,5.518e-05,2]
[396664677,1765090029204,-169.63592332,5.519e-05,2]
[396664678,1765090032645,-353.75255448,5.519e-05,2]
[396664679,1765090035893,-413.49271773,5.519e-05,2]
[396664680,1765090037531,-151.99883395,5.519e-05,2]
[396664682,1765090039214,716.39140647,5.518e-05,2]
[396664683,1765090039394,716.39140647,5.518e-05,2]
[396664684,1765090039516,255.38247373,5.518e-05,2]
[396664685,1765090039568,461.00893274,5.518e-05,2]
[396664686,1765090039699,716.39140647,5.518e-05,2]
[396664687,1765090039805,716.39140647,5.518e-05,2]
[396664688,1765090039936,716.39140647,5.518e-05,2]
[396664689,1765090054761,523.62910167,5.518e-05,2]
[396664691,1765090064445,-248.75728919,5.519e-05,2]
[396664692,1765090066585,-562.43420098,5.519e-05,2]
[396664693,1765090068174,-179.2736605,5.519e-05,2]
[396664694,1765090069965,-286.47767855,5.519e-05,2]
[396664695,1765090071981,-155.48290866,5.519e-05,2]
[396664696,1765090073465,-300.0,5.519e-05,2]
[396664697,1765090073551,429.72772136,5.518e-05,2]
[396664698,1765090082292,300.0,5.518e-05,2]
[396664699,1765090094473,-252.04362725,5.519e-05,2]
[396664700,1765090096650,-288.37092348,5.519e-05,2]
[396664701,1765090099490,-174.27929332,5.519e-05,2]
[396664702,1765090102838,-285.11274756,5.519e-05,2]
[396664703,1765090106848,-216.58187174,5.519e-05,2]
[396664704,1765090111086,-241.23703564,5.519e-05,2]
[396664705,1765090113763,-309.20222697,5.519e-05,2]
[396664706,1765090116446,-422.17227404,5.519e-05,2]
[396664707,1765090118048,-361.88347355,5.519e-05,2]
[396664708,1765090140648,-285.62627834,5.519e-05,2]
[396664709,1765090142081,-219.73287126,5.519e-05,2]
[396664710,1765090143078,300.0,5.518e-05,2]
[396664711,1765090144585,-283.05730706,5.519e-05,2]
[396664712,1765090147721,-311.05114931,5.519e-05,2]
[396664713,1765090149944,-217.29391882,5.519e-05,2]
[396664714,1765090158592,-9936.7228968,5.519e-05,2]
[396664715,1765090169430,-211.78772605,5.519e-05,2]
[396664716,1765090171772,-185.74975375,5.519e-05,2]
[396664717,1765090173987,-172.32017929,5.519e-05,2]
[396664718,1765090176181,-324.04632137,5.519e-05,2]
[396664719,1765090178304,-192.97650903,5.519e-05,2]
[396664720,1765090180046,-329.42693693,5.519e-05,2]
[396664721,1765090182088,-215.10551669,5.519e-05,2]
[396664722,1765090184181,-231.14574503,5.519e-05,2]
[396664723,1765090186803,-468.18209299,5.519e-05,2]
[396664724,1765090188998,-275.72310828,5.519e-05,2]
[396664725,1765090192350,-164.45979637,5.519e-05,2]
[396664726,1765090201376,300.0,5.518e-05,2]
[396664727,1765090202610,300.0,5.518e-05,2]
[396664728,1765090209487,625.0,5.518e-05,2]
[396664729,1765090214478,-180.14800879,5.519e-05,2]
[396664730,1765090216009,-210.60091953,5.519e-05,2]
[396664731,1765090218749,-155.67299573,5.519e-05,2]
[396664732,1765090220286,-221.6882104,5.519e-05,2]
[396664733,1765090221854,-327.85199121,5.519e-05,2]
[396664734,1765090227268,-500.0,5.519e-05,2]
[396664746,1765090231651,-4688.45,5.519e-05,2]
[396664748,1765090231663,-28064.33790145,5.519e-05,2]
[396664750,1765090231675,-768.41661478,5.519e-05,2]
[396664753,1765090231686,-305.24391306,5.519e-05,2]
[396664840,1765090237932,-5532.61197048,5.519e-05,2]
[396665137,1765090240897,-3e-08,5.519e-05,2]
[396665141,1765090240931,-18470.50213203,5.519e-05,2]
[396665143,1765090240942,-3435.90441041,5.519e-05,2]
[396665162,1765090241133,-300.0,5.519e-05,2]
[396665266,1765090242307,-275.27572611,5.519e-05,2]
[396665329,1765090243023,-6770.58491379,5.519e-05,2]
[396665336,1765090243637,-579.58930061,5.519e-05,2]
[396665620,1765090246620,-678.92998736,5.519e-05,2]
[396665675,1765090247133,-240.43560067,5.519e-05,2]
[396667135,1765090262600,300.0,5.518e-05,2]
[396669658,1765090289480,-453.22945386,5.519e-05,2]
[396669922,1765090292065,-731.3444991,5.519e-05,2]
[396670164,1765090294451,-274.75222852,5.519e-05,2]
[396670374,1765090296810,-182.04172186,5.519e-05,2]
[396670475,1765090298274,-188.12795238,5.519e-05,2]
[396670679,1765090300271,-283.73409991,5.519e-05,2]
[396670824,1765090301683,-170.93,5.519e-05,2]
[396670924,1765090303149,-154.99,5.519e-05,2]
[396671537,1765090309807,500.0,5.518e-05,2]
[396671542,1765090309850,363.92883444,5.518e-05,2]
[396671549,1765090309909,500.0,5.518e-05,2]
[396671554,1765090309952,421.94716541,5.518e-05,2]
[396671572,1765090310122,500.0,5.518e-05,2]
[396671578,1765090310175,500.0,5.518e-05,2]
[396671606,1765090310467,500.0,5.518e-05,2]
[396671612,1765090310511,418.02086477,5.518e-05,2]
[396671641,1765090310778,500.0,5.518e-05,2]
[396671738,1765090311753,107.5731602,5.518e-05,2]
[396671743,1765090311791,392.4268398,5.518e-05,2]
[396671752,1765090311870,-246.82715909,5.519e-05,2]
[396671771,1765090312165,216.95485981,5.518e-05,2]
[396671979,1765090314416,-256.87988646,5.519e-05,2]
[396672128,1765090316532,-423.1959537,5.519e-05,2]
[396672645,1765090322448,300.0,5.518e-05,2]
[396672681,1765090378448,1200.0,5.518e-05,2]
[396672682,1765090442731,177.0,5.518e-05,2]
[396672683,1765090506816,300.0,5.518e-05,2]
[396672684,1765090507223,1000.0,5.519e-05,2]
[396672685,1765090507805,339.18657831,5.519e-05,2]
[396672686,1765090508745,1200.0,5.518e-05,2]
[396672687,1765090511680,2230.315306,5.519e-05,2]
[396672688,1765090517780,520.89482337,5.519e-05,2]
[396672689,1765090532130,-5248.10313797,5.519e-05,2]
[396672690,1765090532248,-10000.01,5.519e-05,2]
[396672691,1765090532320,-10000.01,5.519e-05,2]
[396672692,1765090532577,-10000.01,5.519e-05,2]
[396672693,1765090532802,-10000.01,5.519e-05,2]
[396672694,1765090533116,-10000.01,5.519e-05,2]
[396672695,1765090533230,-10000.01,5.519e-05,2]
[396672696,1765090533374,-10000.01,5.519e-05,2]
[396672697,1765090533547,-10000.01,5.519e-05,2]
[396672698,1765090541116,-10000.01,5.519e-05,2]
[396672699,1765090545714,-10000.01,5.519e-05,2]
[396672700,1765090546640,-10000.01,5.519e-05,2]
[396672701,1765090546702,-10000.01,5.519e-05,2]
[396672702,1765090546760,-10000.01,5.519e-05,2]
[396672703,1765090546814,-10000.01,5.519e-05,2]
[396672704,1765090546882,-10000.01,5.519e-05,2]
[396672705,1765090546982,-10000.01,5.519e-05,2]
[396672706,1765090547190,-10000.01,5.519e-05,2]
[396672707,1765090547273,-10000.01,5.519e-05,2]
[396672708,1765090562415,300.0,5.518e-05,2]
[396672709,1765090589477,206.86885331,5.419e-05,2]
[396672710,1765090618617,9493.14114669,5.077e-05,2]
[396672711,1765090618655,878.08234981,5.077e-05,2]
[396672712,1765090640154,400.0,5.519e-05,2]
[396672713,1765090646402,500.0,5.518e-05,2]
[396672714,1765090646459,638.46628333,5.518e-05,2]
[396672715,1765090646516,500.0,5.518e-05,2]
[396672716,1765090646575,500.0,5.518e-05,2]
[396672717,1765090646714,500.0,5.518e-05,2]
[396672718,1765090646761,426.64087767,5.518e-05,2]
[396672719,1765090646820,500.0,5.518e-05,2]
[396672720,1765090647016,500.0,5.518e-05,2]
[396672721,1765090647086,500.0,5.518e-05,2]
[396672722,1765090647356,500.0,5.518e-05,2]
[396672723,1765090647407,500.0,5.518e-05,2]
[396672724,1765090647655,500.0,5.518e-05,2]
[396672725,1765090647726,500.0,5.518e-05,2]
[396672726,1765090647991,500.0,5.518e-05,2]
[396672727,1765090648063,500.0,5.518e-05,2]
[396672728,1765090648286,500.0,5.518e-05,2]
[396672729,1765090648344,550.13199249,5.518e-05,2]
[396672730,1765090648607,106.6884967,5.518e-05,2]
[396672731,1765090648652,393.3115033,5.518e-05,2]
[396672732,1765090649007,500.0,5.518e-05,2]
[396672733,1765090649239,229.96566209,5.519e-05,2]
[396672734,1765090654691,500.0,5.518e-05,2]
[396672735,1765090654990,500.0,5.518e-05,2]
[396672736,1765090658020,500.0,5.518e-05,2]
[396672737,1765090658363,500.0,5.518e-05,2]
[396672738,1765090658431,500.0,5.518e-05,2]
[396672739,1765090658491,500.0,5.518e-05,2]
[396672740,1765090658550,500.0,5.518e-05,2]
[396672741,1765090658609,500.0,5.518e-05,2]
[396672742,1765090658656,500.0,5.518e-05,2]
[396672743,1765090658720,500.0,5.518e-05,2]
[396672744,1765090658780,159.55178497,5.518e-05,2]
[396672745,1765090658859,500.0,5.518e-05,2]
[396672746,1765090658912,500.0,5.518e-05,2]
[396672747,1765090659009,500.0,5.518e-05,2]
[396672748,1765090677838,500.0,5.518e-05,2]
[396672749,1765090677888,462.22151336,5.518e-05,2]
[396672750,1765090677949,500.0,5.518e-05,2]
[396672751,1765090678006,500.0,5.518e-05,2]
[396672752,1765090678100,254.95953628,5.518e-05,2]
[396672753,1765090678140,245.04046372,5.518e-05,2]
[396672754,1765090678187,500.0,5.518e-05,2]
[396672755,1765090678234,500.0,5.518e-05,2]
[396672756,1765090678293,500.0,5.518e-05,2]
[396672757,1765090678362,500.0,5.518e-05,2]
[396672758,1765090678475,1200.0,5.518e-05,2]
[396672759,1765090683078,300.0,5.518e-05,2]
[396672760,1765090807263,300.0,5.518e-05,2]
[396672761,1765090809136,1200.0,5.518e-05,2]
[396672762,1765090819118,411.94860325,5.519e-05,2]
[396672763,1765090838379,-4343.02093303,5.519e-05,2]
[396672764,1765090838614,-10000.01,5.519e-05,2]
[396672765,1765090838687,-10000.01,5.519e-05,2]
[396672766,1765090838757,-10000.01,5.519e-05,2]
[396672767,1765090838888,-10000.01,5.519e-05,2]
[396672768,1765090839042,-10000.01,5.519e-05,2]
[396672769,1765090865840,-300.0,5.518e-05,2]
[396672770,1765090882829,546.593288,5.252e-05,2]
[396672771,1765090916078,274.04142891,5.518e-05,2]
[396672772,1765090916121,504.73718385,5.518e-05,2]
[396672773,1765090916166,500.0,5.518e-05,2]
[396672774,1765090916208,500.0,5.518e-05,2]
[396672775,1765090916249,638.01564731,5.518e-05,2]
[396672776,1765090916423,500.0,5.518e-05,2]
[396672777,1765090916484,500.0,5.518e-05,2]
[396672778,1765090916732,500.0,5.518e-05,2]
[396672779,1765090916776,500.0,5.518e-05,2]
[396672780,1765090917034,500.0,5.518e-05,2]
[396672781,1765090917080,500.0,5.518e-05,2]
[396672782,1765090917356,500.0,5.518e-05,2]
[396672783,1765090917407,500.0,5.518e-05,2]
[396672784,1765090917665,500.0,5.518e-05,2]
[396672785,1765090917709,500.0,5.518e-05,2]
[396672786,1765090918100,322.08976227,5.518e-05,2]
[396672787,1765090918149,500.0,5.518e-05,2]
[396672788,1765090918762,592.6533112,5.518e-05,2]
[396672789,1765090922311,21.87937846,5.518e-05,2]
[396672790,1765090922352,478.12062154,5.518e-05,2]
[396672791,1765090922416,500.0,5.518e-05,2]
[396672792,1765090922467,500.0,5.518e-05,2]
[396672793,1765090922516,500.0,5.518e-05,2]
[396672794,1765090922806,300.0,5.518e-05,2]
[396672795,1765090922859,462.26469168,5.518e-05,2]
[396672796,1765090922923,500.0,5.518e-05,2]
[396672797,1765090922986,500.0,5.518e-05,2]
[396672798,1765090929154,206.86885331,5.419e-05,2]
[396672799,1765090963496,6052.75583347,5.419e-05,2]
[396672800,1765090963544,10000.01,5.419e-05,2]
[396672801,1765090963589,10000.01,5.419e-05,2]
[396672802,1765090963637,10000.01,5.419e-05,2]
[396672803,1765090963685,10000.01,5.419e-05,2]
[396672804,1765090963732,10000.01,5.419e-05,2]
[396672805,1765090963779,10000.01,5.419e-05,2]
[396672806,1765090963824,10000.01,5.419e-05,2]
[396672807,1765090963871,10000.01,5.419e-05,2]
[396672808,1765090963916,10000.01,5.419e-05,2]
[396672809,1765090972828,-600.0,5.419e-05,2]
[396672810,1765090972957,-10000.01,5.419e-05,2]
[396672811,1765090973118,-10000.01,5.419e-05,2]
[396672812,1765090973243,-10000.01,5.419e-05,2]
[396672813,1765090973385,-10000.01,5.419e-05,2]
[396672814,1765090980202,-1200.0,5.418e-05,2]
[396672815,1765090980276,-7600.01,5.419e-05,2]
[396672816,1765090980388,-10000.01,5.419e-05,2]
[396672817,1765090980654,-10000.01,5.419e-05,2]
[396672818,1765090980892,-10000.01,5.419e-05,2]
[396672819,1765090981106,-10000.01,5.419e-05,2]
[396672820,1765090981254,-10000.01,5.419e-05,2]
[396672821,1765090981407,-10000.01,5.419e-05,2]
[396672822,1765090981547,-10000.01,5.419e-05,2]
[396672823,1765090981690,-10000.01,5.419e-05,2]
[396672824,1765090981852,-10000.01,5.419e-05,2]
[396672825,1765090982045,-10000.01,5.419e-05,2]
[396672826,1765090982203,-10000.01,5.419e-05,2]
[396672827,1765090982369,-300.0,5.418e-05,2]
[396672828,1765090982463,-9400.01,5.419e-05,2]
[396672829,1765090982534,-10000.01,5.419e-05,2]
[396672830,1765090982793,-300.0,5.418e-05,2]
[396672831,1765090982881,-9400.01,5.419e-05,2]
[396672832,1765091072442,1469.9596203,5.418e-05,2]
[396672833,1765091072641,1469.9596203,5.418e-05,2]
[396672834,1765091072908,1469.9596203,5.418e-05,2]